[Event "Titled Tuesday Blitz May 03 Early 2022"]
[White "D`Arruda, Ricardo D."]
[Black "Barria Zuniga, Daniel"]
[WhiteFideId "100692"]
[BlackFideId "3400816"]
[WhiteElo "2431"]
[BlackElo "2414"]
[Result "0-1"]
[Round "10"]
[TimeControl "180+1"]
[Date "2022.05.03"]
[WhiteClock "0:00:08"]
[BlackClock "0:00:05"]

1. d4 {[%clk 0:03:00]}  g6 {[%clk 0:02:55]} 2. e4 {[%clk 0:02:59]}  Bg7 {[%clk 0:02:55]} 3. Nc3 {[%clk 0:02:59]}  c5 {[%clk 0:02:55]} 4. Nf3 {[%clk 0:02:57]}  Qa5 {[%clk 0:02:55]} 5. Be2 {[%clk 0:02:52]}  Nc6 {[%clk 0:02:53]} 6. d5 {[%clk 0:02:49]}  Nd4 {[%clk 0:02:52]} 7. O-O {[%clk 0:02:46]}  d6 {[%clk 0:02:50]} 8. Nxd4 {[%clk 0:02:37]}  Bxd4 {[%clk 0:02:48]} 9. Bb5+ {[%clk 0:02:36]}  Kf8 {[%clk 0:02:47]} 10. Bd3 {[%clk 0:02:25]}  h5 {[%clk 0:02:30]} 11. Ne2 {[%clk 0:02:21]}  Bg7 {[%clk 0:02:27]} 12. Bd2 {[%clk 0:02:19]}  Qc7 {[%clk 0:02:20]} 13. Nc3 {[%clk 0:02:07]}  c4 {[%clk 0:01:53]} 14. Be2 {[%clk 0:02:06]}  Bd7 {[%clk 0:01:53]} 15. f4 {[%clk 0:02:04]}  b5 {[%clk 0:01:49]} 16. a3 {[%clk 0:02:03]}  Qb6+ {[%clk 0:01:28]} 17. Kh1 {[%clk 0:02:01]}  Nh6 {[%clk 0:01:27]} 18. f5 {[%clk 0:01:51]}  Ng4 {[%clk 0:01:20]} 19. Bxg4 {[%clk 0:01:27]}  hxg4 {[%clk 0:01:21]} 20. fxg6 {[%clk 0:01:27]}  Be5 {[%clk 0:01:14]} 21. Rxf7+ {[%clk 0:01:27]}  Kg8 {[%clk 0:00:58]} 22. Rh7 {[%clk 0:01:27]}  Rxh7 {[%clk 0:00:54]} 23. gxh7+ {[%clk 0:01:28]}  Kxh7 {[%clk 0:00:54]} 24. Qe1 {[%clk 0:01:28]}  Kg7 {[%clk 0:00:42]} 25. Qh4 {[%clk 0:01:24]}  Bf6 {[%clk 0:00:24]} 26. Qh6+ {[%clk 0:01:22]}  Kf7 {[%clk 0:00:24]} 27. Rf1 {[%clk 0:01:18]}  Rg8 {[%clk 0:00:21]} 28. Bg5 {[%clk 0:01:13]}  Qd4 {[%clk 0:00:20]} 29. Qh5+ {[%clk 0:01:06]}  Rg6 {[%clk 0:00:18]} 30. Bxf6 {[%clk 0:01:05]}  exf6 {[%clk 0:00:17]} 31. Ne2 {[%clk 0:00:58]}  Qe5 {[%clk 0:00:14]} 32. Nf4 {[%clk 0:00:59]}  Qxh5 {[%clk 0:00:14]} 33. Nxh5 {[%clk 0:01:00]}  Rh6 {[%clk 0:00:13]} 34. Ng3 {[%clk 0:00:56]}  Kg6 {[%clk 0:00:13]} 35. Kg1 {[%clk 0:00:44]}  a5 {[%clk 0:00:12]} 36. Ne2 {[%clk 0:00:32]}  Rh8 {[%clk 0:00:11]} 37. Ng3 {[%clk 0:00:23]}  Re8 {[%clk 0:00:10]} 38. Kf2 {[%clk 0:00:23]}  Rh8 {[%clk 0:00:10]} 39. Rh1 {[%clk 0:00:21]}  b4 {[%clk 0:00:09]} 40. axb4 {[%clk 0:00:20]}  axb4 {[%clk 0:00:10]} 41. Ke3 {[%clk 0:00:19]}  Ra8 {[%clk 0:00:10]} 42. Kd4 {[%clk 0:00:19]}  c3 {[%clk 0:00:04]} 43. bxc3 {[%clk 0:00:17]}  bxc3 {[%clk 0:00:04]} 44. Kxc3 {[%clk 0:00:17]}  Ra3+ {[%clk 0:00:04]} 45. Kd2 {[%clk 0:00:17]}  Kg5 {[%clk 0:00:04]} 46. Rf1 {[%clk 0:00:16]}  Ra4 {[%clk 0:00:04]} 47. Rf2 {[%clk 0:00:11]}  Rc4 {[%clk 0:00:02]} 48. Re2 {[%clk 0:00:11]}  Ba4 {[%clk 0:00:01]} 49. Rf2 {[%clk 0:00:09]}  Rxc2+ {[%clk 0:00:01]} 50. Ke3 {[%clk 0:00:10]}  Rxf2 {[%clk 0:00:01]} 51. Kxf2 {[%clk 0:00:11]}  Kf4 {[%clk 0:00:02]} 52. Nh5+ {[%clk 0:00:10]}  Ke5 {[%clk 0:00:01]} 53. Nxf6 {[%clk 0:00:11]}  Kxf6 {[%clk 0:00:01]} 54. Kg3 {[%clk 0:00:11]}  Ke5 {[%clk 0:00:02]} 55. Kxg4 {[%clk 0:00:11]}  Bc2 {[%clk 0:00:03]} 56. h4 {[%clk 0:00:05]}  Bxe4 {[%clk 0:00:04]} 57. g3 {[%clk 0:00:05]}  Bxd5 {[%clk 0:00:03]} 58. Kg5 {[%clk 0:00:05]}  Be4 {[%clk 0:00:04]} 59. h5 {[%clk 0:00:06]}  d5 {[%clk 0:00:04]} 60. h6 {[%clk 0:00:06]}  d4 {[%clk 0:00:05]} 61. Kh5 {[%clk 0:00:07]}  d3 {[%clk 0:00:05]} 62. g4 {[%clk 0:00:08]}  d2 {[%clk 0:00:05]} 63. g5 {[%clk 0:00:09]}  d1=Q+ {[%clk 0:00:05]} 64. Kh4 {[%clk 0:00:08]}  Kf5 {[%clk 0:00:05]} 0-1


[Site "https://www.chess.com"]

[Event "Titled Tuesday Blitz May 03 Early 2022"]
[White "Dauner, Benedikt"]
[Black "Tasev, Dejan"]
[WhiteFideId "16225899"]
[BlackFideId "936618"]
[WhiteElo "2230"]
[BlackElo "2253"]
[Result "1-0"]
[Round "10"]
[TimeControl "180+1"]
[Date "2022.05.03"]
[WhiteClock "0:00:35"]
[BlackClock "0:00:31"]

1. b3 {[%clk 0:02:59]}  Nf6 {[%clk 0:02:59]} 2. Bb2 {[%clk 0:03:00]}  g6 {[%clk 0:02:59]} 3. Bxf6 {[%clk 0:03:00]}  exf6 {[%clk 0:02:59]} 4. c4 {[%clk 0:03:00]}  Bg7 {[%clk 0:02:58]} 5. Nc3 {[%clk 0:03:01]}  O-O {[%clk 0:02:58]} 6. g3 {[%clk 0:03:01]}  f5 {[%clk 0:02:58]} 7. Rc1 {[%clk 0:03:00]}  c6 {[%clk 0:02:57]} 8. Bg2 {[%clk 0:03:00]}  h5 {[%clk 0:02:57]} 9. e3 {[%clk 0:02:59]}  d6 {[%clk 0:02:56]} 10. Nge2 {[%clk 0:02:59]}  Nd7 {[%clk 0:02:55]} 11. O-O {[%clk 0:02:59]}  h4 {[%clk 0:02:55]} 12. d4 {[%clk 0:02:58]}  hxg3 {[%clk 0:02:55]} 13. hxg3 {[%clk 0:02:59]}  Bf6 {[%clk 0:02:53]} 14. Bf3 {[%clk 0:02:59]}  Kg7 {[%clk 0:02:52]} 15. Kg2 {[%clk 0:02:59]}  Rh8 {[%clk 0:02:34]} 16. Rh1 {[%clk 0:02:59]}  Rxh1 {[%clk 0:02:34]} 17. Qxh1 {[%clk 0:02:58]}  Qh8 {[%clk 0:02:34]} 18. Qxh8+ {[%clk 0:02:58]}  Kxh8 {[%clk 0:02:34]} 19. b4 {[%clk 0:02:56]}  Nb6 {[%clk 0:02:27]} 20. c5 {[%clk 0:02:48]}  dxc5 {[%clk 0:02:20]} 21. bxc5 {[%clk 0:02:42]}  Nc4 {[%clk 0:02:13]} 22. d5 {[%clk 0:02:29]}  Nd2 {[%clk 0:02:06]} 23. d6 {[%clk 0:02:16]}  Nxf3 {[%clk 0:02:04]} 24. Kxf3 {[%clk 0:02:17]}  Bd7 {[%clk 0:02:01]} 25. Rb1 {[%clk 0:02:11]}  Rb8 {[%clk 0:01:55]} 26. Nd4 {[%clk 0:02:09]}  Kg7 {[%clk 0:01:47]} 27. a4 {[%clk 0:02:07]}  b6 {[%clk 0:01:40]} 28. a5 {[%clk 0:01:50]}  b5 {[%clk 0:01:37]} 29. Na2 {[%clk 0:01:50]}  g5 {[%clk 0:01:17]} 30. Nb4 {[%clk 0:01:48]}  Rc8 {[%clk 0:01:16]} 31. Rd1 {[%clk 0:01:19]}  Kg6 {[%clk 0:01:15]} 32. Ke2 {[%clk 0:01:08]}  g4 {[%clk 0:01:07]} 33. Kd3 {[%clk 0:01:05]}  Kg5 {[%clk 0:01:00]} 34. Rh1 {[%clk 0:01:01]}  Kg6 {[%clk 0:00:58]} 35. Ne2 {[%clk 0:01:00]}  Be5 {[%clk 0:00:47]} 36. Kd2 {[%clk 0:00:51]}  Be6 {[%clk 0:00:43]} 37. Nd3 {[%clk 0:00:47]}  Bf6 {[%clk 0:00:37]} 38. Nef4+ {[%clk 0:00:47]}  Kg7 {[%clk 0:00:36]} 39. Nh5+ {[%clk 0:00:46]}  Kg6 {[%clk 0:00:36]} 40. Ndf4+ {[%clk 0:00:46]}  Kg5 {[%clk 0:00:36]} 41. Nxe6+ {[%clk 0:00:34]}  fxe6 {[%clk 0:00:36]} 42. Nf4 {[%clk 0:00:35]}  Bb2 {[%clk 0:00:31]} 43. Nxe6+ {[%clk 0:00:34]}  Kf6 {[%clk 0:00:31]} 44. d7 {[%clk 0:00:35]} 1-0


[Site "https://www.chess.com"]

[Event "Titled Tuesday Blitz May 03 Early 2022"]
[White "Deac, Bogdan-Daniel"]
[Black "Babazada, Khazar"]
[WhiteFideId "1226380"]
[BlackFideId "13413554"]
[WhiteElo "2648"]
[BlackElo "2406"]
[Result "1-0"]
[Round "10"]
[TimeControl "180+1"]
[Date "2022.05.03"]
[WhiteClock "0:02:08"]
[BlackClock "0:01:06"]

1. d4 {[%clk 0:03:00]}  Nf6 {[%clk 0:03:00]} 2. c4 {[%clk 0:03:00]}  c5 {[%clk 0:02:59]} 3. d5 {[%clk 0:03:00]}  e6 {[%clk 0:02:53]} 4. Nc3 {[%clk 0:03:00]}  exd5 {[%clk 0:02:51]} 5. cxd5 {[%clk 0:03:01]}  d6 {[%clk 0:02:52]} 6. e4 {[%clk 0:03:01]}  g6 {[%clk 0:02:51]} 7. Nf3 {[%clk 0:03:01]}  Bg7 {[%clk 0:02:50]} 8. Be2 {[%clk 0:02:59]}  O-O {[%clk 0:02:49]} 9. Be3 {[%clk 0:02:59]}  Re8 {[%clk 0:02:47]} 10. Nd2 {[%clk 0:02:58]}  h5 {[%clk 0:02:46]} 11. h3 {[%clk 0:02:55]}  a6 {[%clk 0:02:40]} 12. a4 {[%clk 0:02:55]}  Nbd7 {[%clk 0:02:40]} 13. O-O {[%clk 0:02:55]}  Rb8 {[%clk 0:02:34]} 14. Qc2 {[%clk 0:02:55]}  Qe7 {[%clk 0:02:21]} 15. Rae1 {[%clk 0:02:52]}  Nf8 {[%clk 0:01:57]} 16. f4 {[%clk 0:02:45]}  Bd7 {[%clk 0:01:57]} 17. a5 {[%clk 0:02:36]}  Bb5 {[%clk 0:01:25]} 18. Nxb5 {[%clk 0:02:31]}  axb5 {[%clk 0:01:21]} 19. Bxb5 {[%clk 0:02:32]}  N8d7 {[%clk 0:01:14]} 20. Bf2 {[%clk 0:02:29]}  Rec8 {[%clk 0:01:12]} 21. Nc4 {[%clk 0:02:24]}  Ne8 {[%clk 0:01:12]} 22. e5 {[%clk 0:02:11]}  dxe5 {[%clk 0:01:09]} 23. d6 {[%clk 0:02:09]}  Nxd6 {[%clk 0:01:06]} 24. Nxd6 {[%clk 0:02:08]} 1-0


[Site "https://www.chess.com"]

[Event "Titled Tuesday Blitz May 03 Early 2022"]
[White "Dilmukhametov, Artur"]
[Black "Winkels, Marcel"]
[WhiteFideId "24179922"]
[BlackFideId "1003887"]
[WhiteElo "2244"]
[BlackElo "1900"]
[Result "0-1"]
[Round "10"]
[TimeControl "180+1"]
[Date "2022.05.03"]
[WhiteClock "0:00:14"]
[BlackClock "0:01:43"]

1. d4 {[%clk 0:03:00]}  Nf6 {[%clk 0:02:58]} 2. Nc3 {[%clk 0:02:58]}  d5 {[%clk 0:02:52]} 3. Bf4 {[%clk 0:02:56]}  a6 {[%clk 0:02:52]} 4. Nf3 {[%clk 0:02:56]}  Bg4 {[%clk 0:02:52]} 5. e3 {[%clk 0:02:53]}  Nbd7 {[%clk 0:02:50]} 6. Bd3 {[%clk 0:02:53]}  e6 {[%clk 0:02:46]} 7. Bg5 {[%clk 0:02:52]}  Be7 {[%clk 0:02:42]} 8. Qd2 {[%clk 0:02:49]}  c5 {[%clk 0:02:36]} 9. h3 {[%clk 0:02:17]}  Bh5 {[%clk 0:02:31]} 10. g4 {[%clk 0:02:16]}  Bg6 {[%clk 0:02:31]} 11. Bxf6 {[%clk 0:02:09]}  Bxf6 {[%clk 0:02:30]} 12. h4 {[%clk 0:02:08]}  Bxd3 {[%clk 0:02:18]} 13. Qxd3 {[%clk 0:02:01]}  Qb6 {[%clk 0:02:17]} 14. O-O-O {[%clk 0:01:58]}  O-O-O {[%clk 0:02:14]} 15. g5 {[%clk 0:01:56]}  Be7 {[%clk 0:02:13]} 16. Na4 {[%clk 0:01:39]}  Qc6 {[%clk 0:02:09]} 17. Nc3 {[%clk 0:01:16]}  Nb6 {[%clk 0:02:07]} 18. Ne5 {[%clk 0:01:14]}  Qe8 {[%clk 0:02:01]} 19. f4 {[%clk 0:00:47]}  f6 {[%clk 0:02:01]} 20. gxf6 {[%clk 0:00:45]}  gxf6 {[%clk 0:02:00]} 21. Nf3 {[%clk 0:00:44]}  Nc4 {[%clk 0:02:00]} 22. Nd2 {[%clk 0:00:39]}  Nxd2 {[%clk 0:01:56]} 23. Qxd2 {[%clk 0:00:39]}  c4 {[%clk 0:01:56]} 24. Rhg1 {[%clk 0:00:32]}  Rg8 {[%clk 0:01:54]} 25. Qe2 {[%clk 0:00:26]}  Bb4 {[%clk 0:01:50]} 26. e4 {[%clk 0:00:23]}  Bxc3 {[%clk 0:01:45]} 27. bxc3 {[%clk 0:00:22]}  Qa4 {[%clk 0:01:45]} 28. Kb2 {[%clk 0:00:19]}  Rd6 {[%clk 0:01:44]} 29. exd5 {[%clk 0:00:14]}  Rb6+ {[%clk 0:01:43]} 0-1


[Site "https://www.chess.com"]

[Event "Titled Tuesday Blitz May 03 Early 2022"]
[White "Donchenko, Alexander"]
[Black "Dubov, Daniil"]
[WhiteFideId "24603295"]
[BlackFideId "24126055"]
[WhiteElo "2539"]
[BlackElo "2791"]
[Result "1-0"]
[Round "10"]
[TimeControl "180+1"]
[Date "2022.05.03"]
[WhiteClock "0:00:28"]
[BlackClock "0:00:04"]

1. d4 {[%clk 0:03:00]}  d5 {[%clk 0:03:00]} 2. Nf3 {[%clk 0:03:01]}  Nf6 {[%clk 0:02:59]} 3. Bf4 {[%clk 0:03:01]}  g6 {[%clk 0:02:59]} 4. e3 {[%clk 0:03:01]}  Bg7 {[%clk 0:03:00]} 5. h3 {[%clk 0:03:00]}  O-O {[%clk 0:03:00]} 6. Nbd2 {[%clk 0:02:59]}  c5 {[%clk 0:03:01]} 7. c3 {[%clk 0:02:59]}  Nc6 {[%clk 0:03:01]} 8. Bd3 {[%clk 0:02:58]}  Nd7 {[%clk 0:03:01]} 9. Bb5 {[%clk 0:02:54]}  Qb6 {[%clk 0:02:59]} 10. Qb3 {[%clk 0:02:54]}  a6 {[%clk 0:02:57]} 11. Be2 {[%clk 0:02:50]}  Qxb3 {[%clk 0:02:52]} 12. axb3 {[%clk 0:02:43]}  e5 {[%clk 0:02:51]} 13. dxe5 {[%clk 0:02:43]}  Ndxe5 {[%clk 0:02:51]} 14. Nxe5 {[%clk 0:02:43]}  Nxe5 {[%clk 0:02:52]} 15. Nf3 {[%clk 0:02:43]}  Nxf3+ {[%clk 0:02:50]} 16. Bxf3 {[%clk 0:02:43]}  Be6 {[%clk 0:02:50]} 17. O-O {[%clk 0:02:36]}  Rfd8 {[%clk 0:02:45]} 18. Ra5 {[%clk 0:02:19]}  Rac8 {[%clk 0:02:21]} 19. Rd1 {[%clk 0:02:15]}  Rd7 {[%clk 0:02:19]} 20. Rd2 {[%clk 0:02:10]}  h6 {[%clk 0:01:56]} 21. h4 {[%clk 0:01:57]}  Rcd8 {[%clk 0:01:53]} 22. Rxc5 {[%clk 0:01:49]}  Bf6 {[%clk 0:01:35]} 23. Bxh6 {[%clk 0:01:30]}  Bxh4 {[%clk 0:01:35]} 24. Bf4 {[%clk 0:01:30]}  Bf6 {[%clk 0:01:34]} 25. Rc7 {[%clk 0:01:28]}  Rxc7 {[%clk 0:01:34]} 26. Bxc7 {[%clk 0:01:29]}  Rd7 {[%clk 0:01:33]} 27. Bb6 {[%clk 0:01:29]}  g5 {[%clk 0:01:30]} 28. Bd4 {[%clk 0:01:29]}  Be7 {[%clk 0:01:29]} 29. g3 {[%clk 0:01:28]}  f5 {[%clk 0:01:25]} 30. Kf1 {[%clk 0:01:25]}  Kf7 {[%clk 0:01:25]} 31. Ke2 {[%clk 0:01:25]}  Bd6 {[%clk 0:01:21]} 32. Rd1 {[%clk 0:01:23]}  f4 {[%clk 0:01:14]} 33. gxf4 {[%clk 0:01:17]}  gxf4 {[%clk 0:01:15]} 34. Rh1 {[%clk 0:01:16]}  fxe3 {[%clk 0:01:07]} 35. Kxe3 {[%clk 0:01:16]}  Rd8 {[%clk 0:00:52]} 36. Rh7+ {[%clk 0:01:15]}  Kg6 {[%clk 0:00:53]} 37. Rg7+ {[%clk 0:01:12]}  Kh6 {[%clk 0:00:53]} 38. Rxb7 {[%clk 0:01:11]}  Re8 {[%clk 0:00:52]} 39. Kd2 {[%clk 0:01:09]}  Bf4+ {[%clk 0:00:51]} 40. Be3 {[%clk 0:01:07]}  Kg5 {[%clk 0:00:48]} 41. Rb6 {[%clk 0:01:04]}  Kf5 {[%clk 0:00:35]} 42. Bxf4 {[%clk 0:01:01]}  Kxf4 {[%clk 0:00:34]} 43. Be2 {[%clk 0:01:01]}  a5 {[%clk 0:00:30]} 44. Ra6 {[%clk 0:01:02]}  d4 {[%clk 0:00:26]} 45. cxd4 {[%clk 0:01:01]}  Bxb3 {[%clk 0:00:26]} 46. Rxa5 {[%clk 0:01:00]}  Re4 {[%clk 0:00:25]} 47. Bd3 {[%clk 0:00:55]}  Re7 {[%clk 0:00:21]} 48. Rf5+ {[%clk 0:00:53]}  Kg4 {[%clk 0:00:21]} 49. Re5 {[%clk 0:00:52]}  Rb7 {[%clk 0:00:20]} 50. Kc3 {[%clk 0:00:46]}  Bf7 {[%clk 0:00:18]} 51. Bc4 {[%clk 0:00:45]}  Bg6 {[%clk 0:00:17]} 52. d5 {[%clk 0:00:43]}  Kf4 {[%clk 0:00:17]} 53. Re6 {[%clk 0:00:41]}  Bf5 {[%clk 0:00:17]} 54. Re8 {[%clk 0:00:41]}  Rh7 {[%clk 0:00:14]} 55. b4 {[%clk 0:00:34]}  Rh2 {[%clk 0:00:14]} 56. Re2 {[%clk 0:00:31]}  Be4 {[%clk 0:00:11]} 57. b5 {[%clk 0:00:29]}  Bf3 {[%clk 0:00:09]} 58. Rd2 {[%clk 0:00:29]}  Ke5 {[%clk 0:00:09]} 59. d6 {[%clk 0:00:29]}  Rh8 {[%clk 0:00:09]} 60. d7 {[%clk 0:00:29]}  Rd8 {[%clk 0:00:09]} 61. Kb4 {[%clk 0:00:28]}  Bg4 {[%clk 0:00:07]} 62. b6 {[%clk 0:00:27]}  Bxd7 {[%clk 0:00:04]} 63. Bb5 {[%clk 0:00:28]} 1-0


[Site "https://www.chess.com"]

[Event "Titled Tuesday Blitz May 03 Early 2022"]
[White "Erdogdu, Mert"]
[Black "Zhao, Jun"]
[WhiteFideId "6301495"]
[BlackFideId "8602522"]
[WhiteElo "2485"]
[BlackElo "2547"]
[Result "1-0"]
[Round "10"]
[TimeControl "180+1"]
[Date "2022.05.03"]
[WhiteClock "0:00:15"]
[BlackClock "0:00:01"]

1. e4 {[%clk 0:03:00]}  c5 {[%clk 0:02:54]} 2. Nf3 {[%clk 0:03:00]}  Nc6 {[%clk 0:02:51]} 3. d4 {[%clk 0:02:59]}  cxd4 {[%clk 0:02:51]} 4. Nxd4 {[%clk 0:03:00]}  Nf6 {[%clk 0:02:50]} 5. Nc3 {[%clk 0:03:00]}  e5 {[%clk 0:02:50]} 6. Ndb5 {[%clk 0:03:00]}  d6 {[%clk 0:02:50]} 7. Bg5 {[%clk 0:03:01]}  a6 {[%clk 0:02:50]} 8. Na3 {[%clk 0:03:01]}  b5 {[%clk 0:02:51]} 9. Nd5 {[%clk 0:03:01]}  Be7 {[%clk 0:02:51]} 10. Bxf6 {[%clk 0:03:01]}  Bxf6 {[%clk 0:02:51]} 11. c3 {[%clk 0:03:01]}  O-O {[%clk 0:02:50]} 12. Nc2 {[%clk 0:02:58]}  Bg5 {[%clk 0:02:51]} 13. a4 {[%clk 0:02:58]}  bxa4 {[%clk 0:02:50]} 14. Rxa4 {[%clk 0:02:57]}  a5 {[%clk 0:02:50]} 15. Bc4 {[%clk 0:02:57]}  Rb8 {[%clk 0:02:50]} 16. b3 {[%clk 0:02:55]}  Be6 {[%clk 0:02:50]} 17. O-O {[%clk 0:02:54]}  Kh8 {[%clk 0:02:50]} 18. Qe2 {[%clk 0:02:51]}  Ne7 {[%clk 0:02:34]} 19. Nxe7 {[%clk 0:02:22]}  Bxe7 {[%clk 0:02:32]} 20. Ne3 {[%clk 0:02:11]}  Bg5 {[%clk 0:02:28]} 21. Nd5 {[%clk 0:02:10]}  f5 {[%clk 0:02:19]} 22. exf5 {[%clk 0:02:10]}  Bxf5 {[%clk 0:02:17]} 23. Rfa1 {[%clk 0:02:08]}  Ra8 {[%clk 0:01:18]} 24. b4 {[%clk 0:02:04]}  Be6 {[%clk 0:01:14]} 25. Rxa5 {[%clk 0:02:01]}  Rxa5 {[%clk 0:01:14]} 26. bxa5 {[%clk 0:01:52]}  Qb8 {[%clk 0:00:59]} 27. a6 {[%clk 0:01:48]}  Qa7 {[%clk 0:00:59]} 28. Kh1 {[%clk 0:01:18]}  Rb8 {[%clk 0:00:50]} 29. g3 {[%clk 0:01:13]}  Bd8 {[%clk 0:00:38]} 30. h4 {[%clk 0:01:11]}  g6 {[%clk 0:00:33]} 31. Kg2 {[%clk 0:01:11]}  Kg7 {[%clk 0:00:34]} 32. Ra2 {[%clk 0:01:09]}  Qc5 {[%clk 0:00:31]} 33. Ne3 {[%clk 0:01:00]}  d5 {[%clk 0:00:27]} 34. a7 {[%clk 0:00:35]}  Ra8 {[%clk 0:00:26]} 35. Ra6 {[%clk 0:00:35]}  Bf7 {[%clk 0:00:18]} 36. Ba2 {[%clk 0:00:21]}  Bb6 {[%clk 0:00:18]} 37. Qf3 {[%clk 0:00:17]}  e4 {[%clk 0:00:07]} 38. Qf4 {[%clk 0:00:17]}  Bc7 {[%clk 0:00:05]} 39. Qf6+ {[%clk 0:00:17]}  Kg8 {[%clk 0:00:04]} 40. Rc6 {[%clk 0:00:15]}  Qa5 {[%clk 0:00:04]} 41. Bxd5 {[%clk 0:00:13]}  Bxd5 {[%clk 0:00:03]} 42. Rxc7 {[%clk 0:00:12]}  Qxc7 {[%clk 0:00:03]} 43. Nxd5 {[%clk 0:00:13]}  Qf7 {[%clk 0:00:02]} 44. Ne7+ {[%clk 0:00:13]}  Kf8 {[%clk 0:00:01]} 45. Qh8+ {[%clk 0:00:13]}  Kxe7 {[%clk 0:00:02]} 46. Qxa8 {[%clk 0:00:14]}  Qf3+ {[%clk 0:00:03]} 47. Kg1 {[%clk 0:00:14]}  Qd1+ {[%clk 0:00:01]} 48. Kh2 {[%clk 0:00:15]}  Qf3 {[%clk 0:00:01]} 49. Qb7+ {[%clk 0:00:15]} 1-0


[Site "https://www.chess.com"]

[Event "Titled Tuesday Blitz May 03 Early 2022"]
[White "Eynullayev, Atilla"]
[Black "Sokolovsky, Yahli"]
[WhiteFideId "13413570"]
[BlackFideId "2820242"]
[WhiteElo "1936"]
[BlackElo "1770"]
[Result "0-1"]
[Round "10"]
[TimeControl "180+1"]
[Date "2022.05.03"]
[WhiteClock "0:00:16"]
[BlackClock "0:00:09"]

1. e4 {[%clk 0:03:00]}  g6 {[%clk 0:02:59]} 2. d4 {[%clk 0:02:58]}  Bg7 {[%clk 0:02:59]} 3. Nc3 {[%clk 0:02:59]}  d6 {[%clk 0:03:00]} 4. Bg5 {[%clk 0:02:58]}  c5 {[%clk 0:02:53]} 5. dxc5 {[%clk 0:02:52]}  Qa5 {[%clk 0:02:53]} 6. Qd2 {[%clk 0:02:42]}  Qxc5 {[%clk 0:02:51]} 7. Nf3 {[%clk 0:02:41]}  Nf6 {[%clk 0:02:44]} 8. Be2 {[%clk 0:02:40]}  Nc6 {[%clk 0:02:34]} 9. O-O {[%clk 0:02:38]}  O-O {[%clk 0:02:34]} 10. a3 {[%clk 0:02:30]}  Bg4 {[%clk 0:02:29]} 11. Be3 {[%clk 0:02:15]}  Qa5 {[%clk 0:02:23]} 12. h3 {[%clk 0:02:16]}  Bxf3 {[%clk 0:02:20]} 13. Bxf3 {[%clk 0:02:16]}  Rac8 {[%clk 0:02:17]} 14. Be2 {[%clk 0:02:11]}  Ne5 {[%clk 0:02:14]} 15. f3 {[%clk 0:01:26]}  Nc4 {[%clk 0:02:03]} 16. Bxc4 {[%clk 0:01:26]}  Rxc4 {[%clk 0:02:04]} 17. Nd5 {[%clk 0:01:02]}  Qd8 {[%clk 0:02:03]} 18. c3 {[%clk 0:01:00]}  Nxd5 {[%clk 0:01:19]} 19. Qxd5 {[%clk 0:01:00]}  Rc6 {[%clk 0:00:47]} 20. Bxa7 {[%clk 0:00:47]}  e6 {[%clk 0:00:46]} 21. Qb5 {[%clk 0:00:47]}  Qc7 {[%clk 0:00:34]} 22. Bf2 {[%clk 0:00:46]}  Ra8 {[%clk 0:00:30]} 23. Rfd1 {[%clk 0:00:43]}  Ra5 {[%clk 0:00:30]} 24. Qb3 {[%clk 0:00:44]}  Rg5 {[%clk 0:00:27]} 25. Rd2 {[%clk 0:00:36]}  Be5 {[%clk 0:00:25]} 26. Rad1 {[%clk 0:00:35]}  Bf4 {[%clk 0:00:21]} 27. Rd3 {[%clk 0:00:33]}  Qe7 {[%clk 0:00:12]} 28. Qc2 {[%clk 0:00:26]}  Qc7 {[%clk 0:00:10]} 29. Qe2 {[%clk 0:00:26]}  Ra5 {[%clk 0:00:10]} 30. Qe1 {[%clk 0:00:25]}  Rb5 {[%clk 0:00:10]} 31. Qe2 {[%clk 0:00:22]}  Rb3 {[%clk 0:00:10]} 32. g3 {[%clk 0:00:19]}  Bg5 {[%clk 0:00:09]} 33. f4 {[%clk 0:00:19]}  Be7 {[%clk 0:00:09]} 34. Qc2 {[%clk 0:00:19]}  Rb5 {[%clk 0:00:08]} 35. Kg2 {[%clk 0:00:17]}  Ra5 {[%clk 0:00:08]} 36. Qe2 {[%clk 0:00:18]}  Qb8 {[%clk 0:00:05]} 37. Bd4 {[%clk 0:00:17]}  Qa8 {[%clk 0:00:05]} 38. Qf3 {[%clk 0:00:17]}  Qa6 {[%clk 0:00:06]} 39. R1d2 {[%clk 0:00:16]}  Qc4 {[%clk 0:00:06]} 40. Bf2 {[%clk 0:00:16]}  Ra4 {[%clk 0:00:04]} 41. e5 {[%clk 0:00:16]}  d5 {[%clk 0:00:03]} 42. Rd4 {[%clk 0:00:16]}  Qa6 {[%clk 0:00:04]} 43. Rxa4 {[%clk 0:00:16]}  Qxa4 {[%clk 0:00:05]} 44. Qd3 {[%clk 0:00:16]}  Qb3 {[%clk 0:00:04]} 45. Bd4 {[%clk 0:00:16]}  Rc4 {[%clk 0:00:04]} 46. Qc2 {[%clk 0:00:16]}  Qb5 {[%clk 0:00:05]} 47. Qd1 {[%clk 0:00:13]}  Bd8 {[%clk 0:00:04]} 48. h4 {[%clk 0:00:13]}  h5 {[%clk 0:00:04]} 49. g4 {[%clk 0:00:14]}  hxg4 {[%clk 0:00:02]} 50. Qxg4 {[%clk 0:00:15]}  Qb3 {[%clk 0:00:03]} 51. h5 {[%clk 0:00:15]}  Kf8 {[%clk 0:00:03]} 52. hxg6 {[%clk 0:00:15]}  fxg6 {[%clk 0:00:04]} 53. Qxe6 {[%clk 0:00:15]}  Rc7 {[%clk 0:00:04]} 54. Qxg6 {[%clk 0:00:15]}  Rg7 {[%clk 0:00:04]} 55. Qxg7+ {[%clk 0:00:16]}  Kxg7 {[%clk 0:00:05]} 56. e6+ {[%clk 0:00:16]}  Kf8 {[%clk 0:00:06]} 57. f5 {[%clk 0:00:17]}  Qc4 {[%clk 0:00:06]} 58. f6 {[%clk 0:00:16]}  Qc6 {[%clk 0:00:06]} 59. e7+ {[%clk 0:00:16]}  Bxe7 {[%clk 0:00:07]} 60. fxe7+ {[%clk 0:00:17]}  Kxe7 {[%clk 0:00:08]} 61. Re2+ {[%clk 0:00:17]}  Kd7 {[%clk 0:00:08]} 62. Re5 {[%clk 0:00:18]}  Qg6+ {[%clk 0:00:09]} 63. Kf3 {[%clk 0:00:18]}  Qd3+ {[%clk 0:00:09]} 64. Re3 {[%clk 0:00:18]}  Qf1+ {[%clk 0:00:09]} 65. Kg3 {[%clk 0:00:17]}  Qg1+ {[%clk 0:00:10]} 66. Kf4 {[%clk 0:00:18]}  Qf2+ {[%clk 0:00:10]} 67. Rf3 {[%clk 0:00:16]}  Qxb2 {[%clk 0:00:10]} 68. Ke5 {[%clk 0:00:16]}  Qe2+ {[%clk 0:00:09]} 69. Re3 {[%clk 0:00:16]}  Qh5+ {[%clk 0:00:09]} 70. Kf4 {[%clk 0:00:16]}  Qh4+ {[%clk 0:00:09]} 71. Ke5 {[%clk 0:00:16]}  Qg5# {[%clk 0:00:09]} 0-1


[Site "https://www.chess.com"]

[Event "Titled Tuesday Blitz May 03 Early 2022"]
[White "Gharibyan, Mamikon"]
[Black "Jumabayev, Rinat"]
[WhiteFideId "13308300"]
[BlackFideId "13702661"]
[WhiteElo "2254"]
[BlackElo "2561"]
[Result "0-1"]
[Round "10"]
[TimeControl "180+1"]
[Date "2022.05.03"]
[WhiteClock "0:01:46"]
[BlackClock "0:02:41"]

1. c4 {[%clk 0:03:00]}  Nf6 {[%clk 0:03:00]} 2. Nc3 {[%clk 0:02:57]}  e5 {[%clk 0:03:00]} 3. g3 {[%clk 0:02:56]}  c6 {[%clk 0:03:01]} 4. d4 {[%clk 0:02:54]}  exd4 {[%clk 0:03:00]} 5. Qxd4 {[%clk 0:02:54]}  d5 {[%clk 0:03:00]} 6. Bg2 {[%clk 0:02:46]}  Be6 {[%clk 0:02:49]} 7. cxd5 {[%clk 0:02:29]}  cxd5 {[%clk 0:02:47]} 8. Nf3 {[%clk 0:01:56]}  Nc6 {[%clk 0:02:47]} 9. Qd1 {[%clk 0:01:52]}  d4 {[%clk 0:02:44]} 10. Nb5 {[%clk 0:01:46]}  Qa5+ {[%clk 0:02:41]} 0-1


[Site "https://www.chess.com"]